bitfinex/quotes_ETHUSD_20220201
["timestamp","ask_amount","ask_price","bid_price","bid_amount"]
[1643747798499,1.52284824,2773.7,2773.4,0.3]
[1643747798700,1.1086923,2774.2,2773.5,0.90136]
[1643747798902,1.52267041,2774.1,2773.5,0.90136]
[1643747799104,1.52267041,2774.1,2773.9,0.44449566]
[1643747800400,1.52267041,2774.1,2773.8,1.8025]
[1643747800700,1.52267041,2774.1,2773.8,2.1025]
[1643747801842,1.52267041,2774.1,2773.9,0.35110358]
[1643747802442,0.56162082,2774.2,2774.0,5.17164634]
[1643747802644,0.56162082,2774.2,2774.1,3.12484822]
[1643747802841,0.56162082,2774.2,2774.1,4.42484822]
[1643747803046,0.56162082,2774.2,2774.1,5.24584822]
[1643747803451,0.007,2774.6,2774.3,0.90102]
[1643747803648,0.007,2774.6,2774.4,2.98209637]
[1643747803847,0.39614893,2775.6,2774.6,3.9]
[1643747804047,0.18299287,2775.7,2774.7,2.44336202]
[1643747804048,0.1802,2775.5,2774.7,2.44336202]
[1643747804252,0.04490545,2775.2,2774.8,0.25]
[1643747804547,0.04433703,2775.1,2774.8,0.25]
[1643747804947,0.0437686,2775.0,2774.8,0.25]
[1643747805348,0.04320018,2774.9,2774.8,0.25]
[1643747806189,0.04320018,2774.9,2774.8,0.55]
[1643747806793,0.12330018,2775.6,2774.8,0.55]
[1643747806995,3.99045,2776.1,2774.8,0.25]
[1643747806996,0.18015,2775.8,2774.8,0.25]
[1643747807201,0.92969622,2775.6,2774.8,0.25]
[1643747807996,0.92969622,2775.6,2774.9,0.3695767]
[1643747808197,0.1801,2775.7,2774.9,0.3695767]
[1643747808400,0.1801,2776.0,2774.9,2.4713067]
[1643747808599,0.1801,2776.0,2774.9,2.1713067]
[1643747809342,0.85399337,2776.0,2775.1,0.70093772]
[1643747809539,0.75399337,2776.0,2775.1,0.70093772]
[1643747809741,0.75399337,2776.0,2775.2,0.3]
[1643747809939,0.0801,2776.0,2775.2,2.10154]
[1643747810139,0.0801,2776.0,2775.4,0.25]
[1643747810340,0.1801,2776.4,2775.5,1.9851632]
[1643747810741,0.1801,2776.4,2775.5,0.3]
[1643747810945,0.1801,2776.4,2775.3,3.70410135]
[1643747811143,0.1801,2776.4,2775.6,0.81406097]
[1643747811358,0.1801,2776.4,2775.6,0.3]
[1643747811742,0.1801,2776.4,2775.4,0.90066]
[1643747811947,0.1801,2776.4,2775.5,0.90066]
[1643747812143,22.16049888,2776.7,2775.5,1.20066]
[1643747812144,0.1801,2776.6,2775.5,1.20066]
[1643747812543,21.3601,2776.6,2775.5,0.85728139]
[1643747812987,21.3601,2776.6,2775.5,1.15728139]
[1643747813398,21.3601,2776.6,2775.5,0.3]
[1643747813597,0.18015,2776.5,2775.3,8.6936]
[1643747813801,0.35004833,2775.9,2775.1,0.1801]
[1643747814001,0.83019833,2775.9,2775.0,0.1801]
[1643747814197,0.1801,2775.8,2775.0,0.1801]
[1643747814601,0.8972212,2775.8,2775.0,0.1801]
[1643747814798,1.0773712,2775.8,2775.0,0.1801]
[1643747815698,1.0773712,2775.8,2775.0,2.1801]
[1643747815699,0.1801,2775.8,2775.0,2.1801]
[1643747815900,1.40015474,2776.7,2775.0,2.1801]
[1643747815901,0.1801,2775.9,2775.1,0.01203035]
[1643747816101,0.1801,2776.7,2775.1,0.53303035]
[1643747816300,0.1801,2776.8,2775.2,2.0]
[1643747816502,0.1801,2776.8,2775.3,1.1971]
[1643747816740,0.67900331,2776.7,2775.9,0.39813973]
[1643747816934,0.1799,2776.6,2775.4,6.02368]
[1643747817338,0.1799,2776.6,2775.4,4.32368]
[1643747817836,0.1799,2776.6,2775.8,0.36194046]
[1643747818041,0.1799,2776.6,2775.7,3.32962882]
[1643747818241,0.1799,2776.6,2775.7,2.40106165]
[1643747818442,0.17126327,2776.6,2775.7,0.3]
[1643747819044,0.35141327,2776.6,2775.6,1.0807]
[1643747819344,0.35141327,2776.6,2775.6,1.3807]
[1643747819542,0.35141327,2776.6,2775.6,1.0807]
[1643747819852,0.35141327,2776.6,2775.6,0.1801]
[1643747819853,0.73976563,2776.2,2775.6,0.1801]
[1643747820043,1.11991563,2776.2,2775.6,0.1801]
[1643747820243,0.73976563,2776.2,2775.2,0.1801]
[1643747820483,0.1801,2776.1,2775.1,3.2454]
[1643747820686,0.1801,2776.1,2775.7,0.35019211]
[1643747820886,2.82996852,2776.9,2775.7,0.35019211]
[1643747820887,0.1801,2776.3,2775.7,0.35019211]
[1643747821084,0.1801,2776.5,2775.5,0.90064]
[1643747821288,21.36015,2776.4,2775.3,1.3199]
[1643747821490,0.1801,2776.3,2775.3,1.1398]
[1643747821687,0.18015,2776.2,2775.2,0.1801]
[1643747821887,0.18015,2776.2,2774.9,9.2718]
[1643747821888,0.1801,2776.1,2774.9,9.2718]
[1643747822090,0.1801,2776.1,2775.1,0.44779026]
[1643747822288,0.1801,2776.1,2774.9,7.2718]
[1643747822689,0.18015,2776.0,2774.9,7.2718]
[1643747822890,0.70659386,2775.7,2774.9,7.0218]
[1643747823090,0.1801,2775.9,2774.8,1.98369994]
[1643747823292,0.1801,2775.9,2774.8,3.28369994]
[1643747823491,0.39914373,2775.7,2774.8,3.28369994]
[1643747823688,0.39914373,2775.7,2774.8,2.98369994]
[1643747823891,0.39914373,2775.7,2774.8,1.68369994]
[1643747824089,0.39914373,2775.7,2774.8,0.1801]
[1643747824090,21.18,2775.6,2774.8,0.1801]
[1643747824337,3.28937354,2775.5,2774.8,0.1801]
[1643747824638,21.9894825,2775.3,2774.8,0.1801]
[1643747824836,24.08672819,2775.2,2774.8,0.1801]
[1643747825039,2.90672819,2775.2,2774.8,0.1801]
[1643747826039,2.85672819,2775.2,2774.8,0.1801]
[1643747826240,0.18017,2775.1,2774.8,0.1801]
[1643747826440,0.1801,2775.0,2774.8,0.1801]
[1643747828686,0.18017,2774.9,2774.8,0.1801]
[1643747828887,0.36027,2775.1,2774.8,0.1801]
[1643747829087,2.03756528,2775.0,2774.8,0.1801]
[1643747829285,0.36027,2775.1,2774.8,0.1801]
[1643747829785,0.48017,2775.1,2774.8,0.1801]
[1643747830191,3.0,2775.0,2774.3,0.25]
[1643747830488,0.93130437,2774.8,2773.9,3.07743578]
[1643747830889,1.32668164,2774.8,2773.9,1.80226]
[1643747831292,1.32668164,2774.8,2774.0,0.3]
[1643747832545,1.32668164,2774.8,2774.1,0.1802]
[1643747833154,0.93130437,2774.8,2774.1,0.1802]
[1643747834152,0.93130437,2774.8,2774.0,0.4802]
[1643747834552,0.93130437,2774.8,2774.0,0.1802]
[1643747835256,0.37195001,2774.7,2774.0,0.1802]
[1643747835516,0.93130437,2774.8,2774.0,0.1802]
[1643747835716,0.93130437,2774.8,2773.9,0.1802]
[1643747835915,1.11150437,2774.8,2773.9,0.1802]
[1643747837317,0.40661978,2774.4,2773.9,0.1802]
[1643747837516,1.11150437,2774.8,2773.9,0.1802]
[1643747837716,0.87407554,2774.3,2773.9,0.1802]
[1643747838322,0.1802,2774.8,2773.9,0.1802]
[1643747838722,0.41406686,2774.6,2773.9,0.1802]
[1643747839555,0.73316069,2774.3,2773.9,0.1802]
[1643747841753,0.73316069,2774.3,2773.6,0.80363576]
[1643747841954,0.73316069,2774.3,2773.6,0.55363576]
[1643747842356,0.1802,2774.2,2773.6,0.55363576]
[1643747843099,0.91377879,2773.8,2773.6,0.55363576]
[1643747843701,0.91377879,2773.8,2773.5,0.13819997]
[1643747847538,0.81230014,2773.8,2773.5,0.13819997]
[1643747848146,0.81230014,2773.8,2773.3,0.1802]
[1643747848346,0.81230014,2773.8,2773.2,2.88409]
[1643747848943,0.80215223,2773.8,2773.2,2.88409]
[1643747850148,0.80215223,2773.8,2773.2,0.1802]
[1643747850345,0.98232223,2773.8,2773.2,0.1802]
[1643747850593,1.28232223,2773.8,2773.2,0.1802]
[1643747850793,3.24808596,2773.8,2773.2,0.1802]
[1643747850997,2.12489525,2773.7,2772.9,9.94913]
[1643747851196,2.11977703,2773.7,2772.9,9.94913]
[1643747851396,0.1802,2773.7,2772.9,6.42773]
[1643747852395,0.37152728,2773.6,2772.9,6.42773]
[1643747853200,0.37152728,2773.6,2772.9,3.23733]
[1643747853398,0.80215223,2773.8,2772.9,3.23733]
[1643747854842,0.80215223,2773.8,2773.0,0.90146]
[1643747856445,0.39624045,2773.7,2773.0,0.90146]
[1643747857643,0.80036663,2773.3,2773.0,1.08166]
[1643747857843,0.80036663,2773.3,2773.0,1.38166]
[1643747858703,0.1802,2774.0,2773.0,1.38166]
[1643747859403,0.1802,2774.0,2773.0,2.38166]
[1643747860805,0.1802,2774.0,2773.0,1.08166]
[1643747860806,0.71013453,2773.4,2773.0,1.08166]
[1643747861207,1.9317841,2773.3,2773.0,0.1802]
[1643747861418,0.71013453,2773.4,2773.0,0.1802]
[1643747861419,1.01013453,2773.4,2773.0,0.1802]
[1643747861848,0.1802,2773.3,2773.0,0.1802]
[1643747862051,21.18,2773.1,2772.1,7.47]
[1643747862251,0.66970073,2772.2,2772.1,7.47]
[1643747862449,0.66970073,2772.2,2771.9,0.144324]
[1643747862648,0.66970073,2772.2,2771.6,8.90995142]
[1643747862848,0.66970073,2772.2,2771.7,0.1803]
[1643747863250,0.54970073,2772.2,2771.7,0.1803]
[1643747864057,0.1802,2772.6,2771.7,0.1803]
[1643747864253,0.1802,2772.6,2771.8,0.10084999]
[1643747864455,0.1802,2773.1,2772.0,1.80344]
[1643747864655,0.1802,2773.1,2772.4,0.37179515]
[1643747864855,0.1802,2773.3,2772.1,1.9835]
[1643747865157,0.1802,2773.3,2772.2,1.00357195]
[1643747865357,0.1802,2773.5,2772.4,1.80328]
[1643747865603,1.2255,2773.7,2772.5,2.3918558]
[1643747865604,0.1802,2773.6,2772.5,2.3918558]
[1643747865795,0.1802,2773.6,2772.5,3.6918558]
[1643747865993,0.1802,2773.9,2772.6,0.521]
[1643747866293,0.78680304,2773.5,2772.7,2.052]
[1643747866495,0.78680304,2773.5,2772.7,2.97384999]
[1643747866496,0.1802,2773.4,2772.7,2.97384999]
[1643747866695,0.1802,2773.4,2772.7,3.97384999]
[1643747866893,0.1802,2773.4,2772.8,0.90154]
[1643747867093,0.78680304,2773.5,2772.8,0.90154]
[1643747867291,0.78680304,2773.5,2772.8,2.20154]
[1643747867893,0.1802,2773.6,2772.8,4.29010911]
[1643747868099,0.1802,2773.9,2773.0,0.90145]
[1643747868301,0.1802,2773.9,2773.0,2.94429606]
[1643747868302,1.52274219,2773.8,2773.0,2.94429606]
[1643747868500,0.1802,2773.7,2773.0,2.94429606]
[1643747868801,0.1802,2773.7,2773.0,0.90145]
[1643747869000,0.1802,2773.8,2773.0,0.90145]
[1643747870239,0.74713696,2773.7,2773.0,0.90145]
[1643747871242,0.1802,2773.9,2773.7,2.25286304]
[1643747871448,0.69510366,2773.8,2773.7,2.25286304]
[1643747872740,2.21783584,2773.8,2773.7,2.25286304]
[1643747873902,0.69510366,2773.8,2773.7,2.25286304]
[1643747874303,2.21781795,2773.8,2773.7,2.25286304]
[1643747874511,1.52271429,2773.8,2773.7,2.25286304]
[1643747874705,0.1802,2773.9,2773.7,2.25286304]
[1643747874903,0.1802,2774.0,2773.7,2.25286304]
[1643747875104,0.1802,2774.1,2773.7,2.25286304]
[1643747875509,1.52262453,2774.0,2773.7,3.37758665]
[1643747875808,4.54699761,2775.3,2773.8,1.0]
[1643747875809,0.1802,2774.3,2773.8,1.0]
[1643747876007,0.8532764,2774.9,2773.8,1.0]
[1643747876008,0.18017,2774.9,2773.8,1.0]
[1643747876204,1.52234331,2774.8,2773.8,1.521]
[1643747876605,0.85454982,2774.7,2773.9,0.90111]
[1643747876846,0.85454982,2774.7,2774.0,0.521]
[1643747877444,0.85454982,2774.7,2774.0,1.42208]
[1643747877846,0.85454982,2774.7,2774.1,2.00903377]
[1643747878050,0.85454982,2774.7,2774.1,3.43469842]
[1643747878248,0.85454982,2774.7,2774.1,2.3232]
[1643747878849,0.85454982,2774.7,2774.1,4.32300415]
[1643747879050,0.85454982,2774.7,2774.1,2.3232]
[1643747879250,0.36037,2774.9,2774.1,4.34171851]
[1643747879450,1.52230262,2774.8,2774.1,2.3232]
[1643747880491,1.94374383,2774.8,2774.1,2.3232]
[1643747880693,2.32128377,2774.7,2774.1,2.3232]
[1643747880894,0.79896277,2774.7,2774.1,2.3232]
[1643747881095,1.52236399,2774.6,2774.1,0.521]
[1643747881295,1.52236399,2774.6,2773.7,2.43306304]
[1643747881495,1.52236399,2774.6,2773.7,2.55286304]
[1643747881496,0.1802,2774.5,2773.7,2.55286304]
[1643747881694,1.52236399,2774.4,2773.7,2.55286304]
[1643747882095,0.1802,2774.6,2773.7,2.55286304]
[1643747882302,1.52247357,2774.5,2773.8,0.40547801]
[1643747883596,1.52247357,2774.5,2773.8,2.39987739]
[1643747883797,1.52247357,2774.5,2773.7,3.15411304]
[1643747884642,0.92097672,2774.2,2773.7,3.15411304]
[1643747884844,0.92097672,2774.2,2773.8,0.3]
[1643747885341,0.1802,2774.7,2773.8,0.3]
[1643747885541,1.52244392,2774.6,2773.8,0.3]
[1643747885742,0.1802,2774.5,2773.7,3.15411304]
[1643747886140,0.82876097,2774.4,2773.7,3.15411304]
[1643747886342,0.1802,2774.7,2773.8,2.36911883]
[1643747886544,0.1802,2774.8,2774.0,0.90111]
[1643747886755,0.1802,2775.2,2774.1,2.7163669]
[1643747886951,1.5221743,2775.1,2774.1,3.2373669]
[1643747887153,1.5221743,2775.1,2774.2,1.0]
[1643747887358,0.89170632,2774.8,2774.3,2.01135473]
[1643747887551,1.32399343,2774.8,2774.1,2.71441928]
[1643747887752,1.32399343,2774.8,2774.3,0.90104]
[1643747887993,0.89170632,2774.8,2774.3,0.90104]
[1643747888197,1.52227785,2774.7,2774.3,0.90104]
[1643747888400,1.52227785,2774.7,2774.1,0.521]
[1643747888598,22.70227785,2774.7,2773.9,3.23081]
[1643747888800,0.77124431,2774.2,2773.7,2.43306304]
[1643747889198,0.77124431,2774.2,2773.7,2.25286304]
[1643747889598,0.32641976,2773.9,2773.7,2.25286304]
[1643747890601,21.50641976,2773.9,2773.7,2.25286304]
[1643747890799,21.80641976,2773.9,2773.7,2.25286304]
[1643747890998,0.62641976,2773.9,2773.7,2.25286304]
[1643747891500,3.3302,2773.8,2773.7,2.25286304]
[1643747892755,4.6727928,2773.8,2773.7,2.25286304]
[1643747892951,3.15,2773.8,2773.7,2.25286304]
[1643747893156,0.1802,2773.9,2773.7,2.25286304]
[1643747893756,0.31890028,2773.8,2773.7,2.25286304]
[1643747893960,26.78,2773.6,2772.7,0.1802]
[1643747894161,3.52306954,2773.5,2772.7,0.1802]
[1643747894359,3.52306954,2773.5,2772.2,0.1802]
[1643747894360,23.06343954,2773.4,2772.2,0.1802]
[1643747894560,21.18,2773.2,2771.9,0.1802]
[1643747894757,21.18,2773.2,2771.6,9.46369965]
[1643747894758,21.18,2773.0,2771.7,0.1802]
[1643747894959,0.1802,2772.9,2771.7,0.1802]
[1643747895160,0.1802,2772.9,2771.7,1.08211]
[1643747895357,1.1802,2772.9,2771.7,1.08211]
[1643747895596,0.18017,2772.8,2771.7,1.984]
[1643747895796,0.36037,2772.8,2771.7,1.984]
[1643747895999,0.87504061,2772.4,2771.7,1.984]
[1643747896194,0.87504061,2772.4,2771.8,0.3]
[1643747898201,0.87504061,2772.4,2771.9,0.1802]
[1643747898400,0.87504061,2772.4,2772.0,0.90186]
[1643747898598,0.87504061,2772.4,2772.0,1.20186]
[1643747901248,0.87504061,2772.4,2772.0,0.90186]
[1643747901452,0.87504061,2772.4,2772.0,1.20186]
[1643747901650,0.87504061,2772.4,2772.0,0.90186]
[1643747903104,0.1802,2772.8,2772.0,0.90186]
[1643747903900,0.35313863,2772.5,2772.0,0.90186]
[1643747904401,0.77484928,2772.2,2772.0,0.90186]
[1643747904601,0.77484928,2772.2,2771.9,0.1802]
[1643747905707,0.71035945,2772.3,2771.9,0.1802]
[1643747906739,0.71035945,2772.3,2771.9,0.4802]
[1643747906943,0.71035945,2772.3,2771.9,0.3]
[1643747907141,0.18017,2772.9,2771.9,0.3]
[1643747907841,1.41637,2773.2,2772.1,0.90187]
[1643747908046,0.77863475,2772.5,2772.1,0.90187]
[1643747908547,0.77863475,2772.5,2771.9,0.3]
[1643747909348,0.1802,2772.8,2771.9,0.3]
[1643747909646,0.1802,2772.8,2771.8,1.80366]
[1643747910047,0.1802,2772.8,2771.9,0.3]
[1643747910247,0.1802,2772.8,2771.9,1.55190808]
[1643747910248,0.54083443,2772.8,2771.9,1.55190808]
[1643747910504,0.94190664,2772.6,2771.9,4.34978809]
[1643747910807,0.94190664,2772.6,2771.9,5.25163809]
[1643747911204,0.94190664,2772.6,2771.9,3.22948992]
[1643747911605,0.94190664,2772.6,2771.9,2.05369]
[1643747911803,0.94190664,2772.6,2772.1,0.90185]
[1643747912404,0.48274107,2772.8,2772.1,0.90185]
[1643747912804,0.872673,2772.5,2772.1,0.90185]
[1643747913313,0.48274107,2772.8,2772.1,0.90185]
[1643747913710,0.12210664,2772.8,2772.1,0.90185]
[1643747914743,0.75280862,2772.5,2772.1,0.90185]
[1643747915744,0.12210664,2772.8,2772.1,0.90185]
[1643747916148,0.12210664,2772.8,2771.8,0.1802]
[1643747916149,0.18017,2772.7,2771.8,0.1802]
[1643747916349,0.71408884,2772.6,2771.8,0.1802]
[1643747916548,2.0,2772.5,2771.8,0.1802]
[1643747916748,0.66037,2772.4,2771.8,0.1802]
[1643747916946,0.96037,2772.4,2771.8,0.1802]
[1643747917146,0.81463232,2772.0,2771.8,0.1802]
[1643747917349,1.28396076,2772.4,2771.8,0.1802]
[1643747917546,22.14037,2772.4,2771.8,0.1802]
[1643747917746,21.84037,2772.4,2771.8,0.1802]
[1643747918404,21.84037,2772.4,2771.3,0.25]
[1643747918405,21.18,2772.1,2771.3,0.25]
[1643747918704,0.66037,2772.4,2770.7,1.91062681]
[1643747918705,0.7012,2772.0,2770.7,1.91062681]
[1643747918901,0.1804,2772.1,2770.8,0.01259575]
[1643747919100,0.1804,2772.2,2770.9,0.1804]
[1643747919300,0.1804,2772.2,2771.0,0.90209]
[1643747919499,0.1804,2772.2,2771.8,0.35720224]
[1643747919699,0.78710537,2772.3,2771.6,0.86973119]
[1643747920103,0.78710537,2772.3,2771.1,0.1804]
[1643747920300,0.1802,2772.2,2771.1,3.1804]
[1643747920699,0.1802,2772.2,2771.7,0.35551599]
[1643747920899,0.1802,2772.2,2771.3,0.9021]
[1643747921102,0.36037,2772.2,2771.3,0.71296816]
[1643747921499,21.54037,2772.2,2771.3,0.71296816]
[1643747921958,21.54037,2772.2,2771.3,1.11716023]
[1643747922158,0.36037,2772.2,2771.8,0.34698696]
[1643747922663,0.36037,2772.2,2771.3,1.61505816]
[1643747923264,21.18,2772.1,2771.1,7.47]
[1643747923467,0.41963494,2771.5,2770.8,0.1802]
[1643747923764,0.41963494,2771.5,2770.4,4.83244]
[1643747923765,21.54057,2771.4,2770.4,0.1804]
[1643747923967,21.54057,2771.4,2770.3,3.2697]
[1643747923968,22.36157,2771.4,2770.3,3.2697]
[1643747924167,21.18,2771.2,2770.3,3.2697]
[1643747924362,21.90256038,2770.9,2770.2,0.84896122]
[1643747924563,21.90256038,2770.9,2770.2,0.66856122]
[1643747924762,21.90256038,2770.9,2770.3,0.32196261]
[1643747925997,0.1804,2770.8,2770.3,0.32196261]
[1643747926395,21.3604,2770.8,2770.3,0.32196261]
[1643747926599,0.1804,2770.8,2770.3,0.32196261]
[1643747928200,0.1804,2770.8,2769.7,2.26858]
[1643747928600,0.1804,2770.8,2769.9,0.144429]
[1643747928999,0.1804,2770.8,2769.8,1.3]
[1643747929257,0.1804,2770.8,2770.3,0.31530647]
[1643747929753,0.1804,2770.8,2770.0,0.3]
[1643747929956,21.3604,2770.8,2770.0,0.3]
[1643747930153,21.3604,2770.8,2769.8,1.3]
[1643747930353,0.1804,2770.8,2769.8,1.3]
[1643747930953,0.1804,2770.8,2770.2,0.32980282]
[1643747931154,1.1518,2771.3,2770.2,0.32980282]
[1643747931155,0.1804,2771.2,2770.2,0.32980282]
[1643747931354,2.36057,2771.2,2770.2,0.32980282]
[1643747931559,2.0,2771.1,2770.0,0.3]
[1643747931755,2.0,2771.1,2769.8,1.3]
[1643747931756,0.1804,2771.0,2769.8,1.3]
[1643747931959,21.18,2770.9,2769.8,1.3]
[1643747932154,21.18,2770.7,2769.8,0.3]
[1643747932355,21.18,2770.7,2769.7,0.1804]
[1643747932656,22.03219945,2770.5,2769.8,1.27010892]
[1643747933128,0.85219945,2770.5,2769.8,1.27010892]
[1643747933330,0.1804,2770.6,2769.8,1.27010892]
[1643747933531,0.48017,2770.9,2769.8,1.57010892]
[1643747933532,0.1804,2770.8,2769.8,1.57010892]
[1643747933728,0.1804,2770.8,2769.8,2.57010892]
[1643747933930,0.1804,2771.1,2769.8,2.27010892]
[1643747934128,0.18017,2771.3,2769.9,1.1865]
[1643747934129,0.1804,2771.2,2769.9,1.1865]
[1643747934329,0.7301175,2770.8,2770.3,0.34726159]
[1643747934735,1.98081264,2770.7,2769.9,1.1865]
[1643747934932,1.98081264,2770.7,2769.6,0.4304]
[1643747934933,2.0,2770.6,2769.6,0.4304]
[1643747935138,0.01214953,2770.4,2769.4,0.1804]
[1643747935333,2.30313184,2770.2,2769.4,0.1804]
[1643747935530,3.48157,2770.1,2769.4,0.1804]
[1643747935746,3.48157,2770.1,2768.6,0.25]
[1643747935747,1.04746367,2769.9,2768.6,0.25]
[1643747936033,1.04746367,2769.9,2768.5,0.00199041]
[1643747936034,0.99999999,2769.1,2768.5,0.00199041]
[1643747936231,0.7014,2769.0,2768.2,0.1805]
[1643747936431,1.18016999,2768.9,2768.2,0.1805]
[1643747936634,21.18,2768.7,2768.2,0.1805]
[1643747936852,0.7075762,2768.5,2768.2,0.1805]
[1643747937053,0.1806,2768.4,2768.2,0.1805]
[1643747937449,2.29396613,2768.4,2768.2,0.1805]
[1643747937750,0.18017,2768.3,2768.2,0.1805]
[1643747938755,1.22576176,2768.5,2768.2,0.1805]
[1643747938954,0.1806,2768.4,2768.2,0.1805]
[1643747939354,0.7075762,2768.5,2767.9,0.01269083]
[1643747939561,0.1806,2768.8,2767.9,0.01269083]
[1643747939753,0.1806,2769.1,2768.0,0.1806]
[1643747939953,0.18017,2769.2,2768.0,0.1806]
[1643747940353,0.41870144,2769.3,2768.3,0.37920907]
[1643747940601,0.75903693,2768.8,2768.1,0.76725275]
[1643747940801,0.75903693,2768.8,2768.1,0.3]
[1643747941005,0.75903693,2768.8,2768.1,0.25]
[1643747941305,0.521,2769.7,2768.1,0.25]
[1643747941306,0.1806,2769.5,2768.2,0.95274]
[1643747941505,0.1806,2769.5,2768.3,0.521]
[1643747941805,0.1804,2770.0,2768.5,0.01237569]
[1643747942004,0.1804,2770.0,2768.5,0.53337569]
[1643747942208,0.94705663,2769.3,2768.7,0.6836449]
[1643747942605,0.94705663,2769.3,2768.5,0.83337569]
[1643747942805,2.1804,2770.0,2768.5,0.83337569]
[1643747943207,0.1804,2770.0,2768.5,1.13337569]
[1643747943406,2.1804,2770.0,2768.5,1.13337569]
[1643747943609,0.1804,2770.0,2768.5,1.13337569]
[1643747943807,0.42093475,2769.6,2768.5,0.83337569]
[1643747944006,0.8900394,2769.2,2768.6,0.89550465]
[1643747944260,0.8900394,2769.2,2768.7,0.521]
[1643747945462,0.1804,2770.0,2768.7,0.521]
[1643747945663,0.1804,2770.2,2768.9,0.90275]
[1643747945865,2.1804,2770.2,2769.0,0.521]
[1643747946065,2.1804,2770.2,2768.8,0.1804]
[1643747946066,21.36017,2770.1,2768.8,0.1804]
[1643747946366,0.8984341,2769.2,2768.8,0.1804]
[1643747946864,0.1804,2769.1,2768.8,0.1804]
[1643747947065,0.36755849,2769.0,2768.8,0.1804]
[1643747947363,4.6304,2768.9,2768.8,0.1804]
[1643747948405,4.81057,2768.9,2768.8,0.1804]
[1643747949006,4.6304,2768.9,2768.8,0.1804]
[1643747949506,6.67506745,2768.9,2768.8,0.1804]
[1643747949906,4.6304,2768.9,2768.8,0.1804]
[1643747950111,6.6275187,2768.9,2768.8,0.1804]
[1643747950408,6.62448171,2768.9,2768.8,0.1804]
[1643747950808,4.6304,2768.9,2768.8,0.1804]
[1643747951011,6.63532319,2768.9,2768.8,0.1804]
[1643747951212,4.6304,2768.9,2768.8,0.1804]
[1643747951412,6.61739029,2768.9,2768.8,0.1804]
[1643747951611,6.62922537,2768.9,2768.8,0.1804]
[1643747951851,4.81057,2768.9,2768.8,0.1804]
[1643747952854,4.6304,2768.9,2768.8,0.1804]
[1643747953257,0.1778183,2768.9,2768.8,0.1804]
[1643747954557,2.20202798,2768.9,2768.8,0.1804]
[1643747954857,2.20202798,2768.9,2765.8,8.38]
[1643747954858,5.5,2768.8,2767.6,4.31008271]
[1643747955058,2.78593774,2768.7,2767.8,0.3]
[1643747955260,3.08593774,2768.7,2767.7,0.04092649]
[1643747955505,21.18,2768.6,2767.7,0.04092649]
[1643747955708,1.3039594,2767.8,2767.7,0.04092649]
[1643747958507,2.4092594,2767.8,2767.7,0.04092649]
[1643747959368,4.74385344,2767.8,2767.7,0.04092649]
[1643747959564,2.5894294,2767.8,2767.7,0.04092649]
[1643747960371,5.45,2767.7,2767.6,1.1086923]
[1643747960576,2.4,2767.6,2766.8,0.25]
[1643747960766,2.4,2767.6,2766.4,3.6179]
[1643747960767,0.1806,2767.5,2766.4,3.6179]
[1643747960968,0.1806,2767.5,2766.2,0.0143766]
[1643747961175,22.54077,2767.5,2766.2,0.01238619]
[1643747961367,22.54077,2767.5,2766.1,0.25]
[1643747961368,1.37762284,2767.3,2766.1,0.25]
[1643747961572,3.88186999,2767.2,2765.5,8.75962]
[1643747961769,0.99999999,2767.0,2765.5,7.8557]
[1643747961968,0.99999999,2767.0,2765.3,3.31964078]
[1643747961969,21.18,2766.8,2765.3,0.01214078]
[1643747962170,21.18,2766.6,2765.3,0.01214078]
[1643747962370,3.1807,2766.5,2765.3,0.01214078]
[1643747962569,1.0851371,2766.4,2765.3,0.01214078]
[1643747962785,0.1807,2766.3,2765.3,0.01214078]
[1643747963214,0.18017,2766.2,2765.3,0.01214078]
[1643747963410,0.1807,2766.1,2765.3,0.01214078]
[1643747963609,2.36936328,2766.1,2765.3,0.01214078]
[1643747964010,0.33179047,2765.4,2765.3,0.01214078]
[1643747964215,2.36936328,2766.1,2765.3,0.01214078]
[1643747964216,0.1807,2766.1,2765.3,0.01214078]
[1643747964412,0.1807,2766.4,2765.3,0.01214078]
[1643747964609,0.1807,2766.7,2765.3,0.01214078]
[1643747964809,0.18017,2766.7,2765.3,0.01214078]
[1643747965010,0.1807,2766.6,2765.3,0.01214078]
[1643747965211,0.72801459,2765.5,2765.3,0.01214078]
[1643747965716,0.37134443,2765.9,2765.3,0.01214078]
[1643747965910,0.37134443,2765.9,2765.3,0.91603078]
[1643747966750,0.87260325,2765.6,2765.4,0.3]
[1643747966952,0.1807,2766.4,2765.4,0.3]
[1643747967149,0.1807,2766.4,2765.4,2.35429243]
[1643747967353,0.1807,2766.4,2765.4,3.34187572]
[1643747967750,0.18017,2766.5,2765.4,3.33605861]
[1643747967951,0.40429725,2766.2,2765.4,1.3]
[1643747968157,0.80367591,2765.7,2765.4,1.3]
[1643747968560,0.1807,2766.6,2765.4,1.3]
[1643747968763,0.1807,2766.6,2765.4,0.3]
[1643747968963,0.1807,2766.6,2765.4,3.6592417]
[1643747969460,0.32122615,2766.5,2765.6,0.90378]
[1643747969660,0.32122615,2766.5,2765.7,3.60657579]
[1643747969661,0.71579535,2766.2,2765.7,3.60657579]
[1643747969859,0.71579535,2766.2,2765.4,1.3]
[1643747970065,0.71579535,2766.2,2765.4,0.3]
[1643747970259,0.71579535,2766.2,2765.2,2.10765]
[1643747970914,0.1807,2766.4,2765.2,5.0405674]
[1643747971114,0.1807,2766.4,2765.5,0.90382]
[1643747971313,0.1807,2766.8,2765.6,0.521]
[1643747971514,0.1807,2766.8,2765.6,2.521]
[1643747971911,0.1807,2766.8,2765.7,1.0]
[1643747972114,0.86839787,2766.4,2766.0,0.01212348]
[1643747972512,0.1807,2766.8,2766.0,2.08252635]
[1643747972714,0.1807,2766.8,2766.0,3.08252635]
[1643747972912,0.18017,2767.1,2766.1,0.521]
[1643747973120,0.1807,2767.0,2766.1,0.521]
[1643747973523,0.1807,2767.0,2766.2,2.08124999]
[1643747973524,0.7780359,2766.6,2766.2,2.08124999]